[Event "*** MasterClass Titled Tuesday Blitz"]
[Site "Chess.com"]
[Date "2017.11.07"]
[Round "2"]
[White "fidetrainerNET"]
[Black "gpeloui"]
[Result "0-1"]
[WhiteElo "2032"]
[BlackElo "2244"]
[TimeControl "180+2"]
[EndTime "14:30:54 PST"]
[Termination "gpeloui won by resignation"]

1. e4 {[%clk 0:03:01.9]} 1... e6 {[%clk 0:03:00.4]} 2. Nf3 {[%clk 0:03:03.6]}
2... d5 {[%clk 0:02:58.7]} 3. Nc3 {[%clk 0:03:05.5]} 3... d4 {[%clk 0:02:59.2]}
4. Ne2 {[%clk 0:03:03.3]} 4... c5 {[%clk 0:03:00.6]} 5. c3 {[%clk 0:03:04.8]}
5... Nc6 {[%clk 0:03:01.6]} 6. cxd4 {[%clk 0:03:06.1]} 6... cxd4 {[%clk
0:03:03.5]} 7. Qa4 {[%clk 0:03:07.4]} 7... Bc5 {[%clk 0:02:56.2]} 8. Rb1 {[%clk
0:03:07.2]} 8... Bd7 {[%clk 0:02:50.6]} 9. Qc4 {[%clk 0:03:03.9]} 9... Qb6
{[%clk 0:02:39.7]} 10. b4 {[%clk 0:02:45.9]} 10... Bxb4 {[%clk 0:02:26.7]} 11.
Nfxd4 {[%clk 0:02:41.6]} 11... Bxd2+ {[%clk 0:02:24.1]} 12. Kxd2 {[%clk
0:02:31]} 12... Qxb1 {[%clk 0:02:26]} 13. Nb5 {[%clk 0:02:30.8]} 13... O-O-O
{[%clk 0:02:14.4]} 14. Nec3 {[%clk 0:02:25.9]} 14... Qb4 {[%clk 0:01:53.2]} 15.
Qxb4 {[%clk 0:02:22.6]} 15... Nxb4 {[%clk 0:01:53.6]} 16. Nd6+ {[%clk
0:02:24.5]} 16... Kb8 {[%clk 0:01:51.2]} 17. Nxf7 {[%clk 0:02:26.4]} 17... Nf6
{[%clk 0:01:51.8]} 18. Nxh8 {[%clk 0:02:26.9]} 18... Rxh8 {[%clk 0:01:53.7]} 19.
Ba3 {[%clk 0:02:23.3]} 19... Nc6 {[%clk 0:01:51.9]} 20. e5 {[%clk 0:02:19.8]}
20... Ng4 {[%clk 0:01:49.2]} 21. Bd6+ {[%clk 0:02:19]} 21... Kc8 {[%clk
0:01:47.1]} 22. f4 {[%clk 0:02:13]} 22... Nh6 {[%clk 0:01:29.8]} 23. Bd3 {[%clk
0:02:04.3]} 23... g6 {[%clk 0:01:15.2]} 24. Ne4 {[%clk 0:01:59.4]} 24... Nf5
{[%clk 0:01:14.8]} 25. Rb1 {[%clk 0:01:58.1]} 25... b6 {[%clk 0:00:50]} 26. g4
{[%clk 0:01:55.2]} 26... Nxd6 {[%clk 0:00:50.1]} 27. Nxd6+ {[%clk 0:01:50.6]}
27... Kc7 {[%clk 0:00:50.5]} 28. Be4 {[%clk 0:01:50.5]} 28... Rf8 {[%clk
0:00:44.6]} 29. Ke3 {[%clk 0:01:51.1]} 29... g5 {[%clk 0:00:42]} 30. Nb5+ {[%clk
0:01:35.5]} 30... Kb8 {[%clk 0:00:40.2]} 31. fxg5 {[%clk 0:01:34]} 31... Nxe5
{[%clk 0:00:40.2]} 32. h3 {[%clk 0:01:32.7]} 32... Nc4+ {[%clk 0:00:35.7]} 33.
Kd4 {[%clk 0:01:33]} 33... Nd2 {[%clk 0:00:35.4]} 34. Rb2 {[%clk 0:01:30.5]}
34... e5+ {[%clk 0:00:31.7]} 35. Kd5 {[%clk 0:01:12.3]} 35... Rd8 {[%clk
0:00:24]} 36. Nd6 {[%clk 0:01:08]} 36... Nxe4 {[%clk 0:00:18.7]} 37. Nxe4 {[%clk
0:01:06.5]} 37... Bxg4+ {[%clk 0:00:18.5]} 38. Kxe5 {[%clk 0:01:07.3]} 38...
Bxh3 {[%clk 0:00:19.5]} 39. Rh2 {[%clk 0:01:06.8]} 39... Bg4 {[%clk 0:00:16.5]}
40. Rxh7 {[%clk 0:01:01.1]} 40... Bd1 {[%clk 0:00:17.6]} 41. Nf6 {[%clk
0:01:00.6]} 41... Bc2 {[%clk 0:00:17.7]} 42. Rg7 {[%clk 0:01:00.4]} 42... a5
{[%clk 0:00:18.6]} 43. g6 {[%clk 0:01:01.4]} 43... b5 {[%clk 0:00:19.8]} 44.
Nd7+ {[%clk 0:01:02.4]} 44... Kb7 {[%clk 0:00:19.9]} 45. Nc5+ {[%clk 0:01:02.6]}
45... Kc6 {[%clk 0:00:21.2]} 46. Ne6 {[%clk 0:01:03.9]} 46... Re8 {[%clk
0:00:22.5]} 47. Rc7+ {[%clk 0:01:02.9]} 47... Kb6 {[%clk 0:00:23.5]} 48. g7
{[%clk 0:01:03.6]} 48... Bh7 {[%clk 0:00:21.3]} 49. Rd7 {[%clk 0:01:02.3]} 49...
Bg8 {[%clk 0:00:21.4]} 50. Rd6+ {[%clk 0:01:03.5]} 50... Kb7 {[%clk 0:00:22.7]}
51. Kf6 {[%clk 0:01:05.4]} 51... b4 {[%clk 0:00:23.6]} 52. Nd8+ {[%clk
0:01:05.2]} 52... Kc7 {[%clk 0:00:24.3]} 53. Ra6 {[%clk 0:01:01.1]} 53... Rxd8
{[%clk 0:00:25.4]} 54. Ra7+ {[%clk 0:01:01.8]} 54... Kb6 {[%clk 0:00:25.8]} 55.
Re7 {[%clk 0:01:02.7]} 55... a4 {[%clk 0:00:26.3]} 56. Re4 {[%clk 0:01:03.2]}
56... b3 {[%clk 0:00:26.9]} 57. Rxa4 {[%clk 0:01:03.2]} 57... bxa2 {[%clk
0:00:28]} 58. Ke7 {[%clk 0:01:04.6]} 58... Rd1 {[%clk 0:00:27.3]} 59. Kf8 {[%clk
0:01:05.7]} 59... Bb3 {[%clk 0:00:27.3]} 60. Rb4+ {[%clk 0:01:06.1]} 60... Kc5
{[%clk 0:00:28.5]} 61. Rxb3 {[%clk 0:01:07.5]} 61... a1=Q {[%clk 0:00:29.8]} 62.
g8=Q {[%clk 0:01:09.4]} 62... Rd8+ {[%clk 0:00:30.7]} 63. Ke7 {[%clk 0:01:08.7]}
63... Rxg8 {[%clk 0:00:31.9]} 64. Rc3+ {[%clk 0:01:09.8]} 64... Qxc3 {[%clk
0:00:32.1]} 0-1

[Event "*** MasterClass Titled Tuesday Blitz"]
[Site "Chess.com"]
[Date "2017.11.07"]
[Round "2"]
[White "cheese111"]
[Black "kikydu96"]
[Result "1-0"]
[WhiteElo "2381"]
[BlackElo "2398"]
[TimeControl "180+2"]
[EndTime "14:31:02 PST"]
[Termination "cheese111 won by resignation"]

1. e4 {[%clk 0:03:01.9]} 1... c5 {[%clk 0:02:58.7]} 2. Nf3 {[%clk 0:03:01.2]}
2... d6 {[%clk 0:02:58.9]} 3. d4 {[%clk 0:03:02.3]} 3... cxd4 {[%clk 0:03:00.8]}
4. Qxd4 {[%clk 0:03:03.6]} 4... Nc6 {[%clk 0:03:00.4]} 5. Bb5 {[%clk 0:03:05]}
5... Bd7 {[%clk 0:03:01.9]} 6. Bxc6 {[%clk 0:03:05.6]} 6... Bxc6 {[%clk
0:03:00.9]} 7. Nc3 {[%clk 0:03:06.6]} 7... Nf6 {[%clk 0:03:02.4]} 8. Bg5 {[%clk
0:03:08.1]} 8... e6 {[%clk 0:03:03.2]} 9. O-O-O {[%clk 0:03:09.2]} 9... Be7
{[%clk 0:03:04.6]} 10. Qd3 {[%clk 0:03:10.8]} 10... O-O {[%clk 0:03:05.2]} 11.
Nd4 {[%clk 0:03:12.3]} 11... Rc8 {[%clk 0:03:02.4]} 12. f4 {[%clk 0:03:12.3]}
12... Qa5 {[%clk 0:03:00]} 13. h4 {[%clk 0:03:11.3]} 13... Rfe8 {[%clk
0:02:50.6]} 14. f5 {[%clk 0:03:08.1]} 14... e5 {[%clk 0:02:43.3]} 15. Bxf6
{[%clk 0:03:08.1]} 15... Bxf6 {[%clk 0:02:42.1]} 16. Nb3 {[%clk 0:03:09.5]}
16... Qc7 {[%clk 0:02:38.2]} 17. g4 {[%clk 0:03:09.6]} 17... h6 {[%clk
0:02:10.9]} 18. Qd2 {[%clk 0:03:04]} 18... Qe7 {[%clk 0:02:08.4]} 19. Qf2 {[%clk
0:02:52.3]} 19... b5 {[%clk 0:02:02.2]} 20. Nd5 {[%clk 0:02:46.8]} 20... Bxd5
{[%clk 0:02:01.7]} 21. Rxd5 {[%clk 0:02:48.7]} 21... a6 {[%clk 0:02:00.5]} 22.
Nd2 {[%clk 0:02:48.3]} 22... Rc6 {[%clk 0:01:57.4]} 23. Nf3 {[%clk 0:02:48]}
23... Rec8 {[%clk 0:01:56.6]} 24. Rd2 {[%clk 0:02:42.2]} 24... Rc4 {[%clk
0:01:55.4]} 25. Qg2 {[%clk 0:02:13]} 25... g6 {[%clk 0:01:20.3]} 26. g5 {[%clk
0:02:08.4]} 26... Bg7 {[%clk 0:01:06]} 27. f6 {[%clk 0:02:04.7]} 27... Bxf6
{[%clk 0:01:07.6]} 28. gxf6 {[%clk 0:02:06.6]} 28... Qxf6 {[%clk 0:01:09.4]} 29.
Qg4 {[%clk 0:01:42.2]} 29... h5 {[%clk 0:00:55]} 30. Qh3 {[%clk 0:01:34.5]}
30... Qf4 {[%clk 0:00:54]} 31. Kb1 {[%clk 0:01:28.1]} 31... Qxe4 {[%clk
0:00:40.9]} 32. Ng5 {[%clk 0:01:26.5]} 32... Qc6 {[%clk 0:00:41.1]} 33. Rhh2
{[%clk 0:01:12]} 33... Rg4 {[%clk 0:00:36.3]} 34. Rhg2 {[%clk 0:00:57]} 34... f5
{[%clk 0:00:29.5]} 35. Rxg4 {[%clk 0:00:27.1]} 35... hxg4 {[%clk 0:00:31.4]} 36.
Qb3+ {[%clk 0:00:27.5]} 36... Qc4 {[%clk 0:00:25.9]} 37. Rxd6 {[%clk 0:00:27.9]}
37... Kg7 {[%clk 0:00:15.9]} 38. Rd7+ {[%clk 0:00:23.7]} 38... Kg8 {[%clk
0:00:16.9]} 39. Qxc4+ {[%clk 0:00:16.7]} 39... Rxc4 {[%clk 0:00:18.8]} 40. Rd8+
{[%clk 0:00:10.4]} 40... Kg7 {[%clk 0:00:19]} 41. Rd7+ {[%clk 0:00:12.3]} 41...
Kf8 {[%clk 0:00:18.8]} 42. Nh7+ {[%clk 0:00:13.3]} 42... Ke8 {[%clk 0:00:18.6]}
43. Nf6+ {[%clk 0:00:15.2]} 43... Kf8 {[%clk 0:00:20.1]} 44. h5 {[%clk
0:00:04.9]} 44... Rd4 {[%clk 0:00:17.5]} 45. Rxd4 {[%clk 0:00:04.5]} 45... exd4
{[%clk 0:00:19.4]} 46. hxg6 {[%clk 0:00:04.7]} 46... g3 {[%clk 0:00:20.6]} 47.
g7+ {[%clk 0:00:06.1]} 47... Kxg7 {[%clk 0:00:19.9]} 48. Nh5+ {[%clk 0:00:07.7]}
48... Kg6 {[%clk 0:00:19.6]} 49. Nxg3 {[%clk 0:00:09.6]} 49... f4 {[%clk
0:00:21]} 50. Nf1 {[%clk 0:00:07.4]} 50... Kf5 {[%clk 0:00:22.3]} 51. Kc1 {[%clk
0:00:08.9]} 51... Ke4 {[%clk 0:00:24.2]} 52. Kd2 {[%clk 0:00:10.3]} 52... Kf3
{[%clk 0:00:25.7]} 53. Kd3 {[%clk 0:00:11.6]} 53... Kf2 {[%clk 0:00:26.9]} 54.
Nd2 {[%clk 0:00:13.1]} 54... f3 {[%clk 0:00:28.2]} 55. Nxf3 {[%clk 0:00:13.7]}
55... Kxf3 {[%clk 0:00:29.1]} 56. Kxd4 {[%clk 0:00:15.6]} 56... Ke2 {[%clk
0:00:30.8]} 57. c4 {[%clk 0:00:15.3]} 57... bxc4 {[%clk 0:00:30.6]} 58. Kxc4
{[%clk 0:00:17.2]} 58... Kd2 {[%clk 0:00:32.3]} 59. b4 {[%clk 0:00:18.3]} 1-0

[Event "*** MasterClass Titled Tuesday Blitz"]
[Site "Chess.com"]
[Date "2017.11.07"]
[Round "2"]
[White "maciek_92"]
[Black "AkshatChandra"]
[Result "0-1"]
[WhiteElo "2562"]
[BlackElo "2747"]
[TimeControl "180+2"]
[EndTime "14:31:24 PST"]
[Termination "AkshatChandra won by resignation"]

1. c4 {[%clk 0:03:01.9]} 1... e5 {[%clk 0:03:00.3]} 2. Nc3 {[%clk 0:03:01.7]}
2... Bb4 {[%clk 0:03:01.2]} 3. Qb3 {[%clk 0:02:58.9]} 3... Nc6 {[%clk
0:02:48.7]} 4. e3 {[%clk 0:02:54.3]} 4... Bxc3 {[%clk 0:02:36.4]} 5. Qxc3 {[%clk
0:02:54.5]} 5... Nf6 {[%clk 0:02:37.5]} 6. a3 {[%clk 0:02:51]} 6... O-O {[%clk
0:02:37.4]} 7. b4 {[%clk 0:02:49.8]} 7... d5 {[%clk 0:02:38.7]} 8. cxd5 {[%clk
0:02:50.6]} 8... Nxd5 {[%clk 0:02:40.6]} 9. Qc2 {[%clk 0:02:52.1]} 9... Re8
{[%clk 0:02:41.1]} 10. d3 {[%clk 0:02:50.4]} 10... Bg4 {[%clk 0:02:11.6]} 11.
Nf3 {[%clk 0:02:19.7]} 11... Bxf3 {[%clk 0:01:34.7]} 12. gxf3 {[%clk 0:02:21.6]}
12... Nd4 {[%clk 0:01:13.2]} 13. Qb2 {[%clk 0:01:23.9]} 13... Qf6 {[%clk
0:00:51.7]} 14. Be2 {[%clk 0:01:13]} 14... Nxf3+ {[%clk 0:00:21.8]} 15. Kf1
{[%clk 0:00:59.7]} 15... Rad8 {[%clk 0:00:22.2]} 16. h4 {[%clk 0:00:27]} 16...
Nxh4 {[%clk 0:00:17]} 17. Ra2 {[%clk 0:00:22.4]} 17... Rd6 {[%clk 0:00:15.6]}
18. Qc2 {[%clk 0:00:21]} 18... Ng6 {[%clk 0:00:11.9]} 19. Qc4 {[%clk 0:00:21.5]}
19... a6 {[%clk 0:00:11.6]} 20. Qe4 {[%clk 0:00:20.6]} 20... Nc3 {[%clk
0:00:12.3]} 21. Qc4 {[%clk 0:00:19.1]} 21... Nxa2 {[%clk 0:00:13.1]} 22. Qxa2
{[%clk 0:00:21]} 22... Qe6 {[%clk 0:00:09.6]} 23. Qb2 {[%clk 0:00:20.9]} 23...
c6 {[%clk 0:00:11.2]} 24. Bd2 {[%clk 0:00:20.8]} 24... Red8 {[%clk 0:00:12.8]}
25. Qc2 {[%clk 0:00:21]} 25... Qd7 {[%clk 0:00:13.8]} 26. Be1 {[%clk 0:00:19.4]}
26... h6 {[%clk 0:00:13.5]} 27. Qc4 {[%clk 0:00:18.2]} 27... Qf5 {[%clk
0:00:13.8]} 28. Rg1 {[%clk 0:00:17.7]} 28... Rxd3 {[%clk 0:00:14.2]} 29. Bg4
{[%clk 0:00:16.5]} 29... Qf6 {[%clk 0:00:12.6]} 30. Bh5 {[%clk 0:00:16.4]} 30...
Kh8 {[%clk 0:00:06.2]} 31. Qe4 {[%clk 0:00:17.2]} 31... R3d6 {[%clk 0:00:07.1]}
32. Rg3 {[%clk 0:00:15]} 32... Ne7 {[%clk 0:00:05.7]} 33. Be2 {[%clk 0:00:10.2]}
33... Nd5 {[%clk 0:00:05.6]} 34. Rf3 {[%clk 0:00:10]} 34... Qg6 {[%clk
0:00:06.7]} 35. Qh4 {[%clk 0:00:10.4]} 35... Nf6 {[%clk 0:00:07.2]} 36. Rg3
{[%clk 0:00:11.1]} 36... Qb1 {[%clk 0:00:08.3]} 37. f3 {[%clk 0:00:07.4]} 37...
Rd1 {[%clk 0:00:09.3]} 38. Rg1 {[%clk 0:00:08.4]} 38... Qc1 {[%clk 0:00:05.6]}
39. Kf2 {[%clk 0:00:08.9]} 39... Rxe1 {[%clk 0:00:06.5]} 40. Rxe1 {[%clk
0:00:09.6]} 40... Qxa3 {[%clk 0:00:07.6]} 41. Qc4 {[%clk 0:00:09.9]} 41... Kg8
{[%clk 0:00:05.7]} 42. Rg1 {[%clk 0:00:07.5]} 42... Nd5 {[%clk 0:00:06.8]} 43.
Qe4 {[%clk 0:00:08.5]} 43... Qxb4 {[%clk 0:00:06.9]} 44. Qxe5 {[%clk 0:00:09.7]}
44... Qh4+ {[%clk 0:00:05.5]} 45. Rg3 {[%clk 0:00:09.4]} 45... Qf6 {[%clk
0:00:06.1]} 46. Qe4 {[%clk 0:00:09.8]} 46... Kf8 {[%clk 0:00:06.4]} 47. Rg1
{[%clk 0:00:10.6]} 47... Re8 {[%clk 0:00:07.5]} 48. Qd4 {[%clk 0:00:12.2]} 48...
Qxd4 {[%clk 0:00:07.8]} 49. exd4 {[%clk 0:00:13.9]} 49... g5 {[%clk 0:00:07.9]}
50. Bd3 {[%clk 0:00:10.4]} 50... a5 {[%clk 0:00:08.9]} 51. Be4 {[%clk
0:00:11.4]} 51... a4 {[%clk 0:00:09.2]} 52. Ra1 {[%clk 0:00:13]} 52... b5 {[%clk
0:00:10]} 53. Rc1 {[%clk 0:00:13.4]} 53... Nb4 {[%clk 0:00:07.9]} 54. Rb1 {[%clk
0:00:13.5]} 54... a3 {[%clk 0:00:08.3]} 55. Rh1 {[%clk 0:00:10.7]} 55... a2
{[%clk 0:00:08.7]} 56. Kg3 {[%clk 0:00:12.1]} 56... Rxe4 {[%clk 0:00:08.4]} 57.
fxe4 {[%clk 0:00:12.8]} 57... Nc2 {[%clk 0:00:10]} 0-1

[Event "*** MasterClass Titled Tuesday Blitz"]
[Site "Chess.com"]
[Date "2017.11.07"]
[Round "2"]
[White "danyuffa"]
[Black "Dr-Bassem"]
[Result "1-0"]
[WhiteElo "2640"]
[BlackElo "2571"]
[TimeControl "180+2"]
[EndTime "14:31:27 PST"]
[Termination "danyuffa won by checkmate"]

1. d4 {[%clk 0:03:01.9]} 1... Nf6 {[%clk 0:02:59.7]} 2. c4 {[%clk 0:03:02.9]}
2... g6 {[%clk 0:03:00.6]} 3. g3 {[%clk 0:03:01.9]} 3... Bg7 {[%clk 0:03:01.5]}
4. Bg2 {[%clk 0:03:03]} 4... O-O {[%clk 0:03:02.8]} 5. Nc3 {[%clk 0:03:03.6]}
5... d6 {[%clk 0:03:03.4]} 6. Nf3 {[%clk 0:03:04.6]} 6... Nc6 {[%clk 0:03:01.9]}
7. O-O {[%clk 0:03:05]} 7... a6 {[%clk 0:03:02.8]} 8. Bf4 {[%clk 0:03:05.9]}
8... Rb8 {[%clk 0:03:02.1]} 9. Rc1 {[%clk 0:03:05]} 9... h6 {[%clk 0:03:03]} 10.
d5 {[%clk 0:02:54.7]} 10... e5 {[%clk 0:03:02.2]} 11. Bd2 {[%clk 0:02:45.4]}
11... Ne7 {[%clk 0:02:59.6]} 12. Ne1 {[%clk 0:02:40.1]} 12... Nd7 {[%clk
0:02:51.5]} 13. e4 {[%clk 0:02:34]} 13... f5 {[%clk 0:02:52]} 14. exf5 {[%clk
0:02:34.3]} 14... gxf5 {[%clk 0:02:51.3]} 15. Nd3 {[%clk 0:02:24.8]} 15... Ng6
{[%clk 0:02:50.1]} 16. f4 {[%clk 0:02:23.8]} 16... e4 {[%clk 0:02:49.9]} 17. Nf2
{[%clk 0:02:18.4]} 17... c5 {[%clk 0:02:16.1]} 18. Qh5 {[%clk 0:01:52.1]} 18...
Qe8 {[%clk 0:02:09.7]} 19. Ncd1 {[%clk 0:01:50.7]} 19... Nf6 {[%clk 0:02:07.3]}
20. Qe2 {[%clk 0:01:50.7]} 20... b5 {[%clk 0:02:05.6]} 21. b3 {[%clk 0:01:49.7]}
21... bxc4 {[%clk 0:02:00.7]} 22. bxc4 {[%clk 0:01:51.6]} 22... h5 {[%clk
0:01:58.3]} 23. Ne3 {[%clk 0:01:50.6]} 23... Rb2 {[%clk 0:01:47.4]} 24. Rc2
{[%clk 0:01:37.9]} 24... Rxc2 {[%clk 0:01:47.8]} 25. Nxc2 {[%clk 0:01:39.8]}
25... Qa4 {[%clk 0:01:48.1]} 26. Ne3 {[%clk 0:01:33.3]} 26... Qxa2 {[%clk
0:01:47.3]} 27. Qd1 {[%clk 0:01:27.2]} 27... Ng4 {[%clk 0:01:45.1]} 28. Nfxg4
{[%clk 0:01:23.6]} 28... hxg4 {[%clk 0:01:46.9]} 29. h3 {[%clk 0:01:10.6]} 29...
gxh3 {[%clk 0:01:47.2]} 30. Bxh3 {[%clk 0:01:09.3]} 30... Bd4 {[%clk 0:01:48.5]}
31. Rf2 {[%clk 0:00:38.1]} 31... Qa3 {[%clk 0:01:48.3]} 32. Qe2 {[%clk
0:00:33.4]} 32... a5 {[%clk 0:01:30.9]} 33. Kg2 {[%clk 0:00:31.6]} 33... Qd3
{[%clk 0:01:26.5]} 34. Qh5 {[%clk 0:00:25.3]} 34... Rf6 {[%clk 0:00:42.4]} 35.
Re2 {[%clk 0:00:13]} 35... Bxe3 {[%clk 0:00:36]} 36. Bxe3 {[%clk 0:00:13.2]}
36... Qxc4 {[%clk 0:00:37.2]} 37. Rb2 {[%clk 0:00:13.7]} 37... Kg7 {[%clk
0:00:28.6]} 38. Rb8 {[%clk 0:00:11.4]} 38... Rf8 {[%clk 0:00:24.8]} 39. Qd1
{[%clk 0:00:07.9]} 39... Qd3 {[%clk 0:00:19]} 40. Qa1+ {[%clk 0:00:07.4]} 40...
Kh7 {[%clk 0:00:20.1]} 41. Qc1 {[%clk 0:00:07.8]} 41... a4 {[%clk 0:00:17.6]}
42. Kf2 {[%clk 0:00:09.1]} 42... a3 {[%clk 0:00:17.1]} 43. Bf1 {[%clk
0:00:10.2]} 43... Qxd5 {[%clk 0:00:08.7]} 44. Bc4 {[%clk 0:00:11.8]} 44... Qc6
{[%clk 0:00:09.5]} 45. Qh1+ {[%clk 0:00:12.5]} 45... Kg7 {[%clk 0:00:10.6]} 46.
Bd2 {[%clk 0:00:12.6]} 46... d5 {[%clk 0:00:10.1]} 47. Bc3+ {[%clk 0:00:13.5]}
47... Kg8 {[%clk 0:00:11.1]} 48. Qh6 {[%clk 0:00:11.3]} 48... Rf7 {[%clk
0:00:04.8]} 49. Rxc8+ {[%clk 0:00:10.9]} 49... Qxc8 {[%clk 0:00:06.1]} 50. Bxd5
{[%clk 0:00:11.7]} 50... Qa6 {[%clk 0:00:05]} 51. Qg7# {[%clk 0:00:12.5]} 1-0

[Event "*** MasterClass Titled Tuesday Blitz"]
[Site "Chess.com"]
[Date "2017.11.07"]
[Round "2"]
[White "Ar4uha"]
[Black "Vamostodorecto"]
[Result "0-1"]
[WhiteElo "2435"]
[BlackElo "2311"]
[TimeControl "180+2"]
[EndTime "14:31:30 PST"]
[Termination "Vamostodorecto won by resignation"]

1. e4 {[%clk 0:03:01.6]} 1... e5 {[%clk 0:03:00.2]} 2. Nf3 {[%clk 0:03:02.2]}
2... Nc6 {[%clk 0:03:01.7]} 3. d4 {[%clk 0:03:03.6]} 3... exd4 {[%clk
0:03:03.6]} 4. Nxd4 {[%clk 0:03:05.1]} 4... Nf6 {[%clk 0:03:04.4]} 5. Nxc6
{[%clk 0:03:06.6]} 5... bxc6 {[%clk 0:03:06.3]} 6. Bd3 {[%clk 0:03:08.4]} 6...
d5 {[%clk 0:03:06.7]} 7. O-O {[%clk 0:03:09.9]} 7... dxe4 {[%clk 0:02:49.9]} 8.
Qe1 {[%clk 0:03:10.6]} 8... Bd6 {[%clk 0:02:32.2]} 9. Bxe4 {[%clk 0:03:09.7]}
9... O-O {[%clk 0:02:32.5]} 10. Bd3 {[%clk 0:02:54.6]} 10... Re8 {[%clk
0:02:19]} 11. Qc3 {[%clk 0:02:47]} 11... Rb8 {[%clk 0:01:50.7]} 12. Na3 {[%clk
0:02:42]} 12... Bb4 {[%clk 0:01:44.8]} 13. Qxc6 {[%clk 0:02:32.1]} 13... Bb7
{[%clk 0:01:42.6]} 14. Qc4 {[%clk 0:02:33]} 14... Bd5 {[%clk 0:01:31.5]} 15. Qh4
{[%clk 0:02:31.4]} 15... Be7 {[%clk 0:01:21.3]} 16. Re1 {[%clk 0:02:20]} 16...
h6 {[%clk 0:01:05.7]} 17. Qa4 {[%clk 0:01:56.2]} 17... Rb4 {[%clk 0:00:58.8]}
18. Qxa7 {[%clk 0:01:54]} 18... Rg4 {[%clk 0:00:55.5]} 19. g3 {[%clk 0:01:54.8]}
19... Bc5 {[%clk 0:00:42.2]} 20. Rxe8+ {[%clk 0:01:37.5]} 20... Qxe8 {[%clk
0:00:44.1]} 21. Qxc5 {[%clk 0:01:35.8]} 21... Qe1+ {[%clk 0:00:45.1]} 22. Bf1
{[%clk 0:01:37]} 22... Qe4 {[%clk 0:00:45.6]} 23. Qxd5 {[%clk 0:00:28.9]} 23...
Qxd5 {[%clk 0:00:44]} 24. Be3 {[%clk 0:00:30.2]} 24... Rb4 {[%clk 0:00:38]} 25.
Bd3 {[%clk 0:00:24.8]} 25... Ng4 {[%clk 0:00:29.8]} 26. Rd1 {[%clk 0:00:25.4]}
26... Nxe3 {[%clk 0:00:27.6]} 27. Bh7+ {[%clk 0:00:25.9]} 27... Kxh7 {[%clk
0:00:29.1]} 28. Rxd5 {[%clk 0:00:26.5]} 28... Nxd5 {[%clk 0:00:31]} 29. b3
{[%clk 0:00:27.5]} 29... Nc3 {[%clk 0:00:31.1]} 30. Kf1 {[%clk 0:00:26.4]} 30...
Rd4 {[%clk 0:00:31]} 31. Nc4 {[%clk 0:00:24.5]} 31... Rd1+ {[%clk 0:00:30.5]}
32. Kg2 {[%clk 0:00:25.8]} 32... Nxa2 {[%clk 0:00:29.7]} 33. Kf3 {[%clk
0:00:27.7]} 33... Nb4 {[%clk 0:00:28.2]} 34. Ne3 {[%clk 0:00:28.9]} 34... Rc1
{[%clk 0:00:26.8]} 35. c4 {[%clk 0:00:29.7]} 35... Nd3 {[%clk 0:00:26.6]} 36.
Ke2 {[%clk 0:00:29.3]} 36... Nc5 {[%clk 0:00:25.6]} 37. b4 {[%clk 0:00:29.5]}
37... Ne4 {[%clk 0:00:24.4]} 38. f3 {[%clk 0:00:26.9]} 38... Nd6 {[%clk
0:00:24]} 39. Kd3 {[%clk 0:00:28.4]} 39... Rb1 {[%clk 0:00:21.6]} 40. c5 {[%clk
0:00:26.5]} 40... Rb3+ {[%clk 0:00:18.6]} 41. Kd4 {[%clk 0:00:21.3]} 41... Rxb4+
{[%clk 0:00:18.1]} 42. Kd5 {[%clk 0:00:21.4]} 42... Ne8 {[%clk 0:00:15]} 43. Kc6
{[%clk 0:00:21.4]} 43... Rb3 {[%clk 0:00:15.1]} 44. Nc4 {[%clk 0:00:22.3]} 44...
Rc3 {[%clk 0:00:16]} 45. Ne5 {[%clk 0:00:23]} 45... Kg8 {[%clk 0:00:15.1]} 46.
Nd7 {[%clk 0:00:22.3]} 46... Rc2 {[%clk 0:00:14.8]} 47. h4 {[%clk 0:00:23.3]}
47... Rc3 {[%clk 0:00:15.5]} 48. Ne5 {[%clk 0:00:24.7]} 48... Kf8 {[%clk
0:00:13.9]} 49. g4 {[%clk 0:00:24.4]} 49... f6 {[%clk 0:00:13.7]} 50. Ng6+
{[%clk 0:00:25.2]} 50... Kf7 {[%clk 0:00:14.2]} 51. h5 {[%clk 0:00:25.4]} 51...
Rxf3 {[%clk 0:00:14.2]} 52. Kd7 {[%clk 0:00:25.3]} 52... Rd3+ {[%clk 0:00:14.5]}
53. Kc6 {[%clk 0:00:26.9]} 53... Rd4 {[%clk 0:00:14.9]} 54. Nh8+ {[%clk
0:00:28.3]} 54... Kg8 {[%clk 0:00:15.1]} 55. Ng6 {[%clk 0:00:29.4]} 55... Rxg4
{[%clk 0:00:13.4]} 56. Kd7 {[%clk 0:00:30.9]} 56... Rxg6 {[%clk 0:00:11.7]} 57.
hxg6 {[%clk 0:00:32.4]} 57... Kf8 {[%clk 0:00:12]} 58. Ke6 {[%clk 0:00:33.9]}
58... h5 {[%clk 0:00:13.4]} 59. Kf5 {[%clk 0:00:34.8]} 59... Ke7 {[%clk
0:00:13.7]} 60. Ke4 {[%clk 0:00:36]} 60... Ke6 {[%clk 0:00:14.9]} 61. Kf4 {[%clk
0:00:37.6]} 61... f5 {[%clk 0:00:16.8]} 62. Kg5 {[%clk 0:00:38.7]} 62... Ke5
{[%clk 0:00:17.1]} 63. c6 {[%clk 0:00:40.2]} 63... Ke6 {[%clk 0:00:17.9]} 64.
Kf4 {[%clk 0:00:41.5]} 64... Kf6 {[%clk 0:00:18.8]} 0-1